fUST/lending_fUST_20241019
["ID","MTS","AMOUNT","RATE_DAILY","PERIOD"]
[340479031,1729291844665,-500.0,0.00013698,2]
[340479032,1729291844677,-906.63,0.00013698,2]
[340479033,1729291844688,-673.81,0.00013698,2]
[340479034,1729291844699,-748.02,0.00013698,2]
[340479035,1729291844712,-500.0,0.00013698,2]
[340479036,1729291844723,-627.0,0.00013698,2]
[340479037,1729291844733,-518.61,0.00013698,2]
[340479038,1729291844744,-940.92,0.00013698,2]
[340479039,1729291844755,-500.0,0.00013698,2]
[340479040,1729291844765,-500.0,0.00013698,2]
[340479041,1729291844776,-500.0,0.00013698,2]
[340479042,1729291844787,-545.62,0.00013698,2]
[340479043,1729291844799,-1590.53,0.00013698,2]
[340479044,1729291844809,-500.0,0.00013698,2]
[340479045,1729291844821,-655.37,0.00013698,2]
[340479046,1729291844834,-1005.93,0.00013698,2]
[340479047,1729291844848,-500.0,0.00013698,2]
[340479048,1729291844858,-500.0,0.00013698,2]
[340479049,1729291844868,-500.0,0.00013698,2]
[340479050,1729291844878,-500.0,0.00013698,2]
[340479051,1729291844889,-500.0,0.00013698,2]
[340479052,1729291844898,-500.0,0.00013698,2]
[340479053,1729291844907,-560.93,0.00013698,2]
[340479054,1729291844918,-1345.81,0.00013698,2]
[340479055,1729291844930,-500.0,0.00013698,2]
[340479056,1729291844941,-500.0,0.00013698,2]
[340479057,1729291844951,-500.0,0.00013698,2]
[340479058,1729291844962,-500.0,0.00013698,2]
[340479059,1729291844973,-500.0,0.00013698,2]
[340479060,1729291844983,-808.47,0.00013698,2]
[340479061,1729291844993,-500.0,0.00013698,2]
[340479062,1729291845003,-500.0,0.00013698,2]
[340479063,1729291845014,-958.47,0.00013698,2]
[340479064,1729291845026,-500.0,0.00013698,2]
[340479065,1729291845036,-500.0,0.00013698,2]
[340479066,1729291845046,-725.08,0.00013698,2]
[340479067,1729291845055,-500.0,0.00013698,2]
[340479068,1729291845065,-606.85,0.00013698,2]
[340479069,1729291845074,-995.34,0.00013698,2]
[340479070,1729291845084,-500.0,0.00013698,2]
[340479071,1729291845094,-337.19134903,0.00013698,2]
[340479072,1729291845105,-1927.12,0.00013698,2]
[340479073,1729291845115,-500.0,0.00013698,2]
[340479074,1729291845125,-500.0,0.00013698,2]
[340479075,1729291845137,-500.0,0.00013698,2]
[340479076,1729291845148,-500.0,0.00013698,2]
[340479077,1729291845158,-684.7,0.00013698,2]
[340479078,1729291845168,-633.34234005,0.00013698,2]
[340479079,1729291845178,-633.19,0.00013698,2]
[340479080,1729291845188,-659.75,0.00013698,2]
[340479081,1729291845197,-500.0,0.00013698,2]
[340479082,1729291845207,-607.03,0.00013698,2]
[340479083,1729291845217,-500.0,0.00013698,2]
[340479084,1729291845227,-500.0,0.00013698,2]
[340479085,1729291845237,-500.0,0.00013698,2]
[340479086,1729291845246,-582.52,0.00013698,2]
[340479087,1729291845256,-500.0,0.00013698,2]
[340479088,1729291845266,-500.0,0.00013698,2]
[340479089,1729291845276,-500.0,0.00013698,2]
[340479090,1729291845286,-981.61,0.00013698,2]
[340479091,1729291845297,-511.22180467,0.00013698,2]
[340479092,1729291845308,-500.0,0.00013698,2]
[340479093,1729291845318,-421.12640637,0.00013698,2]
[340479094,1729291845328,-471.91181857,0.00013698,2]
[340479095,1729291845338,-270.81485169,0.00013698,2]
[340479096,1729291845348,-636.34561382,0.00013698,2]
[340479097,1729291845358,-1829.57,0.00013698,2]
[340479098,1729291845367,-1010.37,0.00013698,2]
[340479099,1729291845378,-794.19,0.00013698,2]
[340479100,1729291845390,-500.0,0.00013698,2]
[340479101,1729291845399,-962.66,0.00013698,2]
[340479102,1729291845410,-760.7,0.00013698,2]
[340479103,1729291845420,-2750.42,0.00013698,2]
[340479104,1729291845430,-744.46,0.00013698,2]
[340479105,1729291845441,-500.0,0.00013698,2]
[340479106,1729291845452,-500.0,0.00013698,2]
[340479107,1729291845463,-500.0,0.00013698,2]
[340479108,1729291845473,-500.0,0.00013698,2]
[340479109,1729291845484,-194.29065398,0.00013698,2]
[340479110,1729291845493,-670.38,0.00013698,2]
[340479111,1729291845503,-500.0,0.00013698,2]
[340479112,1729291845515,-874.82,0.00013698,2]
[340479113,1729291845526,-500.0,0.00013698,2]
[340479114,1729291845535,-500.0,0.00013698,2]
[340479115,1729291845546,-500.0,0.00013698,2]
[340479116,1729291845557,-956.55,0.00013698,2]
[340479117,1729291845568,-500.0,0.00013698,2]
[340479118,1729291845578,-639.04,0.00013698,2]
[340479119,1729291845588,-500.0,0.00013698,2]
[340479120,1729291845600,-831.11,0.00013698,2]
[340479121,1729291845609,-500.0,0.00013698,2]
[340479122,1729291845618,-506.71,0.00013698,2]
[340479123,1729291845627,-1189.28,0.00013698,2]
[340479124,1729291845641,-500.0,0.00013698,2]
[340479125,1729291845652,-544.67,0.00013698,2]
[340479126,1729291845663,-515.00759271,0.00013698,2]
[340479127,1729291845676,-572.11,0.00013698,2]
[340479128,1729291845686,-500.0,0.00013698,2]
[340479129,1729291845695,-861.55,0.00013698,2]
[340479130,1729291845705,-500.0,0.00013698,2]
[340479131,1729291845715,-500.0,0.00013698,2]
[340479132,1729291845724,-500.0,0.00013698,2]
[340479133,1729291845734,-500.0,0.00013698,2]
[340479134,1729291845744,-500.0,0.00013698,2]
[340479135,1729291845754,-500.0,0.00013698,2]
[340479136,1729291845764,-500.0,0.00013698,2]
[340479137,1729291845776,-500.0,0.00013698,2]
[340479138,1729291845786,-500.0,0.00013698,2]
[340479139,1729291845795,-500.0,0.00013698,2]
[340479140,1729291845805,-500.0,0.00013698,2]
[340479141,1729291845814,-500.0,0.00013698,2]
[340479142,1729291845824,-500.0,0.00013698,2]
[340479143,1729291845834,-500.0,0.00013698,2]
[340479144,1729291845845,-437.82115795,0.00013698,2]
[340479145,1729291845854,-500.0,0.00013698,2]
[340479146,1729291845863,-500.0,0.00013698,2]
[340479147,1729291845872,-671.0,0.00013698,2]
[340479148,1729291845882,-500.0,0.00013698,2]
[340479149,1729291845892,-500.0,0.00013698,2]
[340479150,1729291845901,-500.0,0.00013698,2]
[340479151,1729291845910,-500.0,0.00013698,2]
[340479152,1729291845920,-500.0,0.00013698,2]
[340479153,1729291845929,-502.15774955,0.00013698,2]
[340479154,1729291845938,-500.0,0.00013698,2]
[340479155,1729291845948,-500.0,0.00013698,2]
[340479156,1729291845958,-1034.67,0.00013698,2]
[340479157,1729291845968,-500.0,0.00013698,2]
[340479158,1729291845977,-1730.12,0.00013698,2]
[340479159,1729291845986,-500.0,0.00013698,2]
[340479160,1729291845996,-500.0,0.00013698,2]
[340479161,1729291846005,-500.0,0.00013698,2]
[340479162,1729291846014,-500.0,0.00013698,2]
[340479163,1729291846024,-500.0,0.00013698,2]
[340479164,1729291846033,-1845.83,0.00013698,2]
[340479165,1729291846043,-500.0,0.00013698,2]
[340479166,1729291846052,-1306.8,0.00013698,2]
[340479167,1729291846064,-680.84,0.00013698,2]
[340479168,1729291846074,-667.45,0.00013698,2]
[340479169,1729291846084,-500.0,0.00013698,2]
[340479170,1729291846094,-856.47,0.00013698,2]
[340479171,1729291846104,-500.0,0.00013698,2]
[340479172,1729291846116,-500.0,0.00013698,2]
[340479173,1729291846125,-853.95,0.00013698,2]
[340479174,1729291846138,-1778.08,0.00013698,2]
[340479175,1729291846152,-500.0,0.00013698,2]
[340479176,1729291846162,-500.0,0.00013698,2]
[340479177,1729291846171,-616.44,0.00013698,2]
[340479178,1729291846182,-2120.38,0.00013698,2]
[340479179,1729291846193,-568.37223335,0.00013698,2]
[340479180,1729291846202,-500.0,0.00013698,2]
[340479181,1729291846213,-505.13,0.00013698,2]
[340479182,1729291846222,-638.22,0.00013698,2]
[340479183,1729291846231,-500.0,0.00013698,2]
[340479184,1729291846241,-500.0,0.00013698,2]
[340479186,1729291846253,-500.0,0.00013698,2]
[340479188,1729291846263,-552.77,0.00013698,2]
[340479190,1729291846272,-500.0,0.00013698,2]
[340479192,1729291846281,-500.0,0.00013698,2]
[340479194,1729291846290,-151.0,0.00013698,2]
[340479195,1729291846300,-151.0,0.00013698,2]
[340479197,1729291846309,-151.0,0.00013698,2]
[340479199,1729291846318,-500.0,0.00013698,2]
[340479201,1729291846327,-1243.09,0.00013698,2]
[340479203,1729291846336,-500.0,0.00013698,2]
[340479205,1729291846345,-1877.71,0.00013698,2]
[340479208,1729291846355,-904.73,0.00013698,2]
[340479210,1729291846365,-500.0,0.00013698,2]
[340479212,1729291846374,-500.0,0.00013698,2]
[340479213,1729291846385,-363.12216361,0.00013698,2]
[340479214,1729291846394,-1020.94,0.00013698,2]
[340479215,1729291846403,-853.41,0.00013698,2]
[340479216,1729291846412,-512.28,0.00013698,2]
[340479217,1729291846422,-500.0,0.00013698,2]
[340479218,1729291846431,-500.0,0.00013698,2]
[340479220,1729291846441,-500.0,0.00013698,2]
[340479221,1729291846453,-500.0,0.00013698,2]
[340479223,1729291846463,-806.34,0.00013698,2]
[340479224,1729291846472,-500.0,0.00013698,2]
[340479225,1729291846483,-1095.06,0.00013698,2]
[340479226,1729291846492,-359.95203707,0.00013698,2]
[340479227,1729291846501,-747.11,0.00013698,2]
[340479228,1729291846513,-1119.35,0.00013698,2]
[340479229,1729291846522,-500.0,0.00013698,2]
[340479230,1729291846532,-668.58,0.00013698,2]
[340479231,1729291846543,-1416.54,0.00013698,2]
[340479232,1729291846554,-846.55,0.00013698,2]
[340479233,1729291846563,-500.0,0.00013698,2]
[340479234,1729291846572,-523.90107564,0.00013698,2]
[340479236,1729291846581,-1243.22,0.00013698,2]
[340479237,1729291846591,-500.0,0.00013698,2]
[340479238,1729291846603,-151.0,0.00013698,2]
[340479239,1729291846612,-341.97564296,0.00013698,2]
[340479240,1729291846621,-500.0,0.00013698,2]
[340479241,1729291846632,-514.85,0.00013698,2]
[340479242,1729291846642,-669.01,0.00013698,2]
[340479243,1729291846651,-500.0,0.00013698,2]
[340479244,1729291846661,-673.18,0.00013698,2]
[340479245,1729291846671,-542.97,0.00013698,2]
[340479247,1729291846683,-539.5,0.00013698,2]
[340479248,1729291846693,-936.78,0.00013698,2]
[340479249,1729291846702,-151.0,0.00013698,2]
[340479250,1729291846714,-504.16464724,0.00013698,2]
[340479251,1729291846724,-151.0,0.00013698,2]
[340479252,1729291846735,-151.0,0.00013698,2]
[340479253,1729291846745,-151.0,0.00013698,2]
[340479254,1729291846755,-726.96,0.00013698,2]
[340479255,1729291846766,-151.0,0.00013698,2]
[340479256,1729291846775,-500.0,0.00013698,2]
[340479257,1729291846784,-151.0,0.00013698,2]
[340479258,1729291846793,-971.17,0.00013698,2]
[340479259,1729291846802,-5586.53,0.00013698,2]
[340479260,1729291846811,-1862.55,0.00013698,2]
[340479261,1729291846822,-550.21,0.00013698,2]
[340479262,1729291846832,-1290.46,0.00013698,2]
[340479263,1729291846844,-500.0,0.00013698,2]
[340479264,1729291846856,-742.47,0.00013698,2]
[340479265,1729291846867,-1419.77,0.00013698,2]
[340479266,1729291846877,-1014.6,0.00013698,2]
[340479267,1729291846887,-551.95574023,0.00013698,2]
[340479268,1729291846896,-505.28,0.00013698,2]
[340479269,1729291846905,-500.0,0.00013698,2]
[340479270,1729291846914,-500.0,0.00013698,2]
[340479271,1729291846923,-768.91,0.00013698,2]
[340479272,1729291846932,-151.0,0.00013698,2]
[340479273,1729291846941,-151.0,0.00013698,2]
[340479274,1729291846950,-151.0,0.00013698,2]
[340479275,1729291846959,-500.0,0.00013698,2]
[340479276,1729291846968,-151.0,0.00013698,2]
[340479277,1729291846976,-151.0,0.00013698,2]
[340479278,1729291846986,-151.0,0.00013698,2]
[340479279,1729291846998,-556.94,0.00013698,2]
[340479280,1729291847009,-500.0,0.00013698,2]
[340479281,1729291847019,-1030.46,0.00013698,2]
[340479282,1729291847030,-500.0,0.00013698,2]
[340479283,1729291847039,-1160.09,0.00013698,2]
[340479284,1729291847048,-994.82,0.00013698,2]
[340479285,1729291847057,-590.3637393,0.00013698,2]
[340479286,1729291847066,-500.0,0.00013698,2]
[340479287,1729291847075,-500.0,0.00013698,2]
[340479288,1729291847085,-515.12,0.00013698,2]
[340479289,1729291847094,-883.44,0.00013698,2]
[340479290,1729291847103,-1048.82,0.00013698,2]
[340479291,1729291847112,-43835.78,0.00013698,2]
[340479292,1729291847122,-739.77,0.00013698,2]
[340479293,1729291847131,-500.0,0.00013698,2]
[340479294,1729291847142,-1185.43,0.00013698,2]
[340479295,1729291847152,-5542.64,0.00013698,2]
[340479296,1729291847162,-535.73,0.00013698,2]
[340479297,1729291847174,-500.0,0.00013698,2]
[340479298,1729291847185,-500.0,0.00013698,2]
[340479299,1729291847196,-500.0,0.00013698,2]
[340479300,1729291847205,-681.76,0.00013698,2]
[340479301,1729291847220,-714.78,0.00013698,2]
[340479302,1729291847229,-500.0,0.00013698,2]
[340479303,1729291847238,-500.0,0.00013698,2]
[340479304,1729291847248,-500.0,0.00013698,2]
[340479305,1729291847257,-500.0,0.00013699,2]
[340479306,1729291847267,-151.0,0.00013699,2]
[340479307,1729291847278,-151.0,0.00013699,2]
[340479308,1729291847290,-151.0,0.00013699,2]
[340479309,1729291847302,-151.0,0.00013699,2]
[340479310,1729291847313,-1019.015752,0.00013699,2]
[340479311,1729291847323,-256.684486,0.00013699,2]
[340479312,1729291847332,-250.0,0.00013699,2]
[340479313,1729291847342,-150.112233,0.000137,2]
[340479314,1729291847353,-150.112233,0.000137,2]
[340479315,1729291847364,-210.5530868,0.000137,2]
[340479316,1729291847375,-677.12611092,0.00013722,2]
[340479317,1729291847386,-150.112233,0.000138,2]
[340479318,1729291847397,-150.112233,0.000138,2]
[340479319,1729291847407,-150.112233,0.000138,2]
[340479320,1729291847416,-150.112233,0.000138,2]
[340479321,1729291847426,-107642.044903,0.00013822,2]
[340479322,1729291847435,-87299.4888467,0.00013822,2]
[340479323,1729291847444,-103827.20576281,0.00013832,2]
[340479324,1729291847455,-9062.07844668,0.00013832,2]
[340479325,1729291847473,-414.18,0.00013832,2]
[340479326,1729291847484,-271.45596814,0.00013832,2]
[340479327,1729291847496,-828.36,0.00013832,2]
[340479328,1729291847515,-35856.65132641,0.00013832,2]
[340479329,1729291847525,-200.0,0.0001384,2]
[340479330,1729291847533,-150.112233,0.000139,2]
[340479331,1729291847543,-150.112233,0.000139,2]
[340479332,1729291847552,-150.112233,0.000139,2]
[340479333,1729291847562,-150.112235,0.000139,2]
[340479334,1729291847572,-150.112233,0.000139,2]
[340479335,1729291847581,-150.112233,0.000139,2]
[340479336,1729291847591,-150.112233,0.000139,2]
[340479337,1729291847603,-186.55124,0.000139,2]
[340479338,1729291847613,-527.0,0.0001391,2]
[340479339,1729291847622,-1157.0,0.0001391,2]
[340479340,1729291847632,-1805.0,0.0001391,2]
[340479341,1729291847643,-58199.6592311,0.00013962,2]
[340479342,1729291847652,-237.64594125,0.00013972,2]
[340479343,1729291847662,-500.0,0.00013972,2]
[340479344,1729291847671,-518.46,0.00013972,2]
[340479345,1729291847681,-728.58,0.00013972,2]
[340479346,1729291847690,-671.75,0.00013972,2]
[340479347,1729291847699,-706.39,0.00013972,2]
[340479348,1729291847708,-1056.77,0.00013972,2]
[340479349,1729291847718,-500.0,0.00013972,2]
[340479350,1729291847727,-500.0,0.00013972,2]
[340479351,1729291847737,-629.46,0.00013972,2]
[340479352,1729291847746,-607.53,0.00013972,2]
[340479353,1729291847755,-500.0,0.00013972,2]
[340479354,1729291847765,-649.49,0.00013972,2]
[340479355,1729291847774,-674.46,0.00013972,2]
[340479356,1729291847783,-500.0,0.00013972,2]
[340479357,1729291847793,-500.0,0.00013972,2]
[340479358,1729291847802,-192.30345951,0.00013972,2]
[340479359,1729291847811,-829.82,0.00013972,2]
[340479360,1729291847820,-663.46,0.00013972,2]
[340479361,1729291847830,-500.0,0.00013972,2]
[340479362,1729291847840,-614.35,0.00013972,2]
[340479363,1729291847854,-500.0,0.00013972,2]
[340479364,1729291847863,-500.0,0.00013972,2]
[340479365,1729291847876,-500.0,0.00013972,2]
[340479366,1729291847888,-580.4,0.00013972,2]
[340479367,1729291847897,-949.53,0.00013972,2]
[340479368,1729291847906,-500.0,0.00013972,2]
[340479369,1729291847915,-701.62,0.00013972,2]
[340479370,1729291847924,-833.17,0.00013972,2]
[340479371,1729291847934,-333.74886889,0.00013972,2]
[340479372,1729291847943,-633.06,0.00013972,2]
[340479373,1729291847953,-1000.0,0.00013972,2]
[340479374,1729291847962,-906.63,0.00013972,2]
[340479375,1729291847971,-673.81,0.00013972,2]
[340479376,1729291847980,-748.02,0.00013972,2]
[340479377,1729291847990,-500.0,0.00013972,2]
[340479378,1729291847999,-627.0,0.00013972,2]
[340479379,1729291848008,-518.61,0.00013972,2]
[340479380,1729291848018,-940.92,0.00013972,2]
[340479381,1729291848027,-510.80004305,0.00013972,2]
[340479382,1729291848036,-500.0,0.00013972,2]
[340479383,1729291848046,-500.0,0.00013972,2]
[340479384,1729291848055,-545.62,0.00013972,2]
[340479385,1729291848064,-1590.53,0.00013972,2]
[340479386,1729291848074,-655.37,0.00013972,2]
[340479387,1729291848084,-1005.93,0.00013972,2]
[340479388,1729291848095,-161.48918165,0.00013972,2]
[340479389,1729291848105,-406.7764064,0.00013972,2]
[340479390,1729291848115,-500.0,0.00013972,2]
[340479391,1729291848126,-500.0,0.00013972,2]
[340479392,1729291848136,-236.34561314,0.00013972,2]
[340479393,1729291848146,-500.0,0.00013972,2]
[340479394,1729291848155,-560.93,0.00013972,2]
[340479395,1729291848166,-1345.81,0.00013972,2]
[340479396,1729291848176,-500.0,0.00013972,2]
[340479397,1729291848185,-598.56812115,0.00013972,2]
[340479398,1729291848194,-500.0,0.00013972,2]
[340479399,1729291848204,-625.0,0.00013972,2]
[340479400,1729291848214,-808.47,0.00013972,2]
[340479401,1729291848224,-500.0,0.00013972,2]
[340479402,1729291848234,-500.0,0.00013972,2]
[340479403,1729291848243,-958.47,0.00013972,2]
[340479404,1729291848253,-500.0,0.00013972,2]
[340479405,1729291848262,-500.0,0.00013972,2]
[340479406,1729291848272,-725.08,0.00013972,2]
[340479407,1729291848281,-500.0,0.00013972,2]
[340479408,1729291848291,-606.85,0.00013972,2]
[340479409,1729291848301,-995.34,0.00013972,2]
[340479410,1729291848311,-500.0,0.00013972,2]
[340479411,1729291848321,-1927.12,0.00013972,2]
[340479412,1729291848333,-217.18100769,0.00013972,2]
[340479413,1729291848343,-500.0,0.00013972,2]
[340479414,1729291848353,-500.0,0.00013972,2]
[340479415,1729291848363,-500.0,0.00013972,2]
[340479416,1729291848373,-684.7,0.00013972,2]
[340479417,1729291848383,-633.19,0.00013972,2]
[340479418,1729291848394,-659.75,0.00013972,2]
[340479419,1729291848405,-500.0,0.00013972,2]
[340479420,1729291848414,-607.03,0.00013972,2]
[340479421,1729291848426,-500.0,0.00013972,2]
[340479422,1729291848436,-500.0,0.00013972,2]
[340479423,1729291848445,-500.0,0.00013972,2]
[340479424,1729291848455,-582.52,0.00013972,2]
[340479425,1729291848465,-500.0,0.00013972,2]
[340479426,1729291848476,-500.0,0.00013972,2]
[340479427,1729291848486,-500.0,0.00013972,2]
[340479428,1729291848496,-981.61,0.00013972,2]
[340479429,1729291848506,-500.0,0.00013972,2]
[340479430,1729291848517,-1829.57,0.00013972,2]
[340479431,1729291848529,-1010.37,0.00013972,2]
[340479432,1729291848539,-794.19,0.00013972,2]
[340479433,1729291848552,-500.0,0.00013972,2]
[340479434,1729291848561,-962.66,0.00013972,2]
[340479435,1729291848571,-760.7,0.00013972,2]
[340479436,1729291848580,-2750.42,0.00013972,2]
[340479437,1729291848590,-744.46,0.00013972,2]
[340479438,1729291848601,-500.0,0.00013972,2]
[340479439,1729291848610,-500.0,0.00013972,2]
[340479440,1729291848619,-500.0,0.00013972,2]
[340479441,1729291848629,-500.0,0.00013972,2]
[340479442,1729291848639,-670.38,0.00013972,2]
[340479443,1729291848649,-500.0,0.00013972,2]
[340479444,1729291848658,-874.82,0.00013972,2]
[340479445,1729291848667,-500.0,0.00013972,2]
[340479446,1729291848678,-500.0,0.00013972,2]
[340479447,1729291848688,-500.0,0.00013972,2]
[340479448,1729291848859,-956.55,0.00013972,2]
[340479449,1729291848871,-500.0,0.00013972,2]
[340479450,1729291848881,-639.04,0.00013972,2]
[340479451,1729291848892,-500.0,0.00013972,2]
[340479452,1729291848901,-831.11,0.00013972,2]
[340479453,1729291848911,-500.0,0.00013972,2]
[340479454,1729291848921,-506.71,0.00013972,2]
[340479455,1729291848931,-500.0,0.00013972,2]
[340479456,1729291848940,-1189.28,0.00013972,2]
[340479457,1729291848950,-544.67,0.00013972,2]
[340479458,1729291848959,-572.11,0.00013972,2]
[340479459,1729291848968,-500.0,0.00013972,2]
[340479460,1729291848978,-861.55,0.00013972,2]
[340479461,1729291848987,-500.0,0.00013972,2]
[340479462,1729291848996,-500.0,0.00013972,2]
[340479463,1729291849006,-500.0,0.00013972,2]
[340479464,1729291849015,-671.0,0.00013972,2]
[340479465,1729291849024,-500.0,0.00013972,2]
[340479466,1729291849034,-185.6218761,0.00013972,2]
[340479467,1729291849044,-500.0,0.00013972,2]
[340479468,1729291849054,-500.0,0.00013972,2]
[340479469,1729291849063,-500.0,0.00013972,2]
[340479470,1729291849072,-1034.67,0.00013972,2]
[340479471,1729291849082,-500.0,0.00013972,2]
[340479472,1729291849091,-1730.12,0.00013972,2]
[340479473,1729291849101,-500.0,0.00013972,2]
[340479474,1729291849110,-500.0,0.00013972,2]
[340479475,1729291849119,-500.0,0.00013972,2]
[340479476,1729291849129,-500.0,0.00013972,2]
[340479477,1729291849139,-500.0,0.00013972,2]
[340479478,1729291849149,-1845.83,0.00013972,2]
[340479479,1729291849158,-500.0,0.00013972,2]
[340479480,1729291849170,-1306.8,0.00013972,2]
[340479481,1729291849179,-680.84,0.00013972,2]
[340479482,1729291849189,-667.45,0.00013972,2]
[340479483,1729291849198,-500.0,0.00013972,2]
[340479484,1729291849208,-856.47,0.00013972,2]
[340479485,1729291849217,-500.0,0.00013972,2]
[340479486,1729291849226,-500.0,0.00013972,2]
[340479487,1729291849236,-853.95,0.00013972,2]
[340479488,1729291849246,-1778.08,0.00013972,2]
[340479489,1729291849256,-500.0,0.00013972,2]
[340479490,1729291849265,-500.0,0.00013972,2]
[340479491,1729291849275,-616.44,0.00013972,2]
[340479492,1729291849286,-2120.38,0.00013972,2]
[340479493,1729291849295,-500.0,0.00013972,2]
[340479494,1729291849306,-505.13,0.00013972,2]
[340479495,1729291849316,-638.22,0.00013972,2]
[340479496,1729291849325,-500.0,0.00013972,2]
[340479497,1729291849335,-500.0,0.00013972,2]
[340479498,1729291849344,-500.0,0.00013972,2]
[340479499,1729291849354,-552.77,0.00013972,2]
[340479500,1729291849363,-500.0,0.00013972,2]
[340479501,1729291849374,-500.0,0.00013972,2]
[340479502,1729291849385,-1243.09,0.00013972,2]
[340479503,1729291849394,-500.0,0.00013972,2]
[340479504,1729291849403,-1877.71,0.00013972,2]
[340479505,1729291849412,-904.73,0.00013972,2]
[340479506,1729291849422,-225.9260887,0.00013972,2]
[340479507,1729291849432,-363.27057995,0.00013972,2]
[340479508,1729291849441,-1020.94,0.00013972,2]
[340479509,1729291849451,-853.41,0.00013972,2]
[340479510,1729291849460,-512.28,0.00013972,2]
[340479511,1729291849470,-500.0,0.00013972,2]
[340479512,1729291849479,-500.0,0.00013972,2]
[340479513,1729291849488,-500.0,0.00013972,2]
[340479514,1729291849497,-500.0,0.00013972,2]
[340479515,1729291849507,-806.34,0.00013972,2]
[340479516,1729291849516,-500.0,0.00013972,2]
[340479517,1729291849526,-1095.06,0.00013972,2]
[340479518,1729291849535,-747.11,0.00013972,2]
[340479519,1729291849544,-1119.35,0.00013972,2]
[340479520,1729291849554,-668.58,0.00013972,2]
[340479521,1729291849564,-1416.54,0.00013972,2]
[340479522,1729291849575,-846.55,0.00013972,2]
[340479523,1729291849586,-500.0,0.00013972,2]
[340479524,1729291849595,-1243.22,0.00013972,2]
[340479525,1729291849607,-500.0,0.00013972,2]
[340479526,1729291849617,-514.85,0.00013972,2]
[340479527,1729291849627,-669.01,0.00013972,2]
[340479528,1729291849637,-673.18,0.00013972,2]
[340479529,1729291849647,-542.97,0.00013972,2]
[340479530,1729291849658,-539.5,0.00013972,2]
[340479531,1729291849668,-936.78,0.00013972,2]
[340479532,1729291849677,-726.96,0.00013972,2]
[340479533,1729291849687,-500.0,0.00013972,2]
[340479534,1729291849696,-971.17,0.00013972,2]
[340479535,1729291849705,-5586.53,0.00013972,2]
[340479536,1729291849714,-1862.55,0.00013972,2]
[340479537,1729291849724,-550.21,0.00013972,2]
[340479538,1729291849734,-1290.46,0.00013972,2]
[340479539,1729291849743,-500.0,0.00013972,2]
[340479540,1729291849752,-742.47,0.00013972,2]
[340479541,1729291849763,-1419.77,0.00013972,2]
[340479542,1729291849775,-1014.6,0.00013972,2]
[340479543,1729291849784,-505.28,0.00013972,2]
[340479544,1729291849793,-500.0,0.00013972,2]
[340479545,1729291849804,-500.0,0.00013972,2]
[340479546,1729291849815,-768.91,0.00013972,2]
[340479547,1729291849827,-500.0,0.00013972,2]
[340479548,1729291849837,-556.94,0.00013972,2]